fUST/lending_fUST_20250813
["ID","MTS","AMOUNT","RATE_DAILY","PERIOD"]
[378804660,1755025838320,-250.0,0.000202,10]
[378804661,1755025838329,-500.0,0.000202,10]
[378804662,1755025838338,-250.0,0.000203,10]
[378804663,1755025838347,-250.0,0.000204,10]
[378804664,1755025838356,-151.0,0.00020471,2]
[378804665,1755025838365,-250.0,0.000205,10]
[378804666,1755025838374,-300.0,0.00020553,2]
[378804667,1755025838384,-250.0,0.000206,10]
[378804668,1755025838393,-250.0,0.000207,10]
[378804669,1755025838402,-151.0,0.00020767,2]
[378804670,1755025838411,-500.0,0.00020775,2]
[378804671,1755025838422,-250.0,0.000208,10]
[378804672,1755025838431,-200.0,0.0002082,2]
[378804673,1755025838441,-834.18033915,0.000209,2]
[378804674,1755025838451,-250.0,0.000209,10]
[378804675,1755025838460,-1100.0,0.00020908,2]
[378804676,1755025838470,-417.15472785,0.00020939,10]
[378804677,1755025838479,-215.52532928,0.00020948,10]
[378804678,1755025838488,-528.03329096,0.00020957,10]
[378804679,1755025838498,-500.0,0.0002096,2]
[378804680,1755025838508,-500.0,0.0002096,2]
[378804681,1755025838517,-3929.09,0.00020967,2]
[378804682,1755025838527,-359.77743722,0.00020989,2]
[378804683,1755025838536,-190.01154749,0.00020989,2]
[378804684,1755025838546,-55876.76235605,0.0002099,2]
[378804685,1755025838555,-250.0,0.00021,10]
[378804686,1755025838565,-151.0,0.00021062,2]
[378804687,1755025838574,-162.65333618,0.00021068,2]
[378804688,1755025838583,-162.65333619,0.00021068,2]
[378804689,1755025838593,-500.0,0.00021079,2]
[378804690,1755025838602,-250.0,0.000211,10]
[378804691,1755025838612,-645.0,0.000211,2]
[378804692,1755025838621,-150.0,0.000212,5]
[378804693,1755025838630,-168.0,0.00021252,2]
[378804694,1755025838639,-18502.69577858,0.00021257,2]
[378804695,1755025838649,-168.0,0.0002129,2]
[378804696,1755025838659,-168.0,0.00021315,2]
[378804697,1755025838667,-420.0,0.00021319,2]
[378804698,1755025838676,-1000.0,0.00021323,2]
[378804699,1755025838686,-168.0,0.00021326,2]
[378804700,1755025838695,-151.0,0.00021357,2]
[378804701,1755025838704,-162.65333618,0.0002137,2]
[378804702,1755025838713,-162.65333618,0.0002137,2]
[378804703,1755025838722,-162.65333619,0.0002137,2]
[378804704,1755025838732,-834.18033912,0.00021393,2]
[378804705,1755025838742,-168.0,0.00021394,2]
[378804706,1755025838751,-20254.99684151,0.000214,3]
[378804707,1755025838760,-528.03329096,0.000214,3]
[378804708,1755025838770,-160.0,0.000214,3]
[378804709,1755025838779,-417.15472785,0.000214,3]
[378804710,1755025838788,-7858.87832653,0.000214,2]
[378804711,1755025838797,-215.52532928,0.000214,3]
[378804712,1755025838807,-168.0,0.00021416,2]
[378804713,1755025838816,-168.0,0.00021439,2]
[378804714,1755025838826,-500.0,0.00021473,2]
[378804715,1755025838836,-241.79460553,0.00021473,2]
[378804716,1755025838846,-501.09350321,0.00021473,2]
[378804717,1755025838856,-500.0,0.00021473,2]
[378804718,1755025838865,-500.0,0.00021473,2]
[378804719,1755025838874,-500.0,0.00021473,2]
[378804720,1755025838884,-500.0,0.00021473,2]
[378804721,1755025838893,-500.0,0.00021473,2]
[378804722,1755025838902,-500.0,0.00021473,2]
[378804723,1755025838912,-500.0,0.00021473,2]
[378804724,1755025838921,-500.0,0.00021473,2]
[378804725,1755025838930,-120779.43,0.000215,2]
[378804726,1755025838939,-82974.07,0.000215,2]
[378804727,1755025838950,-110096.36,0.000215,2]
[378804728,1755025838959,-160.0,0.00021511,2]
[378804729,1755025838968,-168.0,0.00021603,2]
[378804730,1755025838979,-4275.83453573,0.00021618,7]
[378804731,1755025838989,-162.65333618,0.00021644,2]
[378804732,1755025838998,-162.65333618,0.00021644,2]
[378804733,1755025839022,-162.65333619,0.00021644,2]
[378804734,1755025839032,-151.0,0.00021652,2]
[378804735,1755025839041,-53357.86723209,0.00021655,2]
[378804736,1755025839050,-319.956,0.00021717,2]
[378804737,1755025839060,-5000.0,0.00021842,2]
[378804738,1755025839069,-1500.0,0.00021871,2]
[378804739,1755025839078,-834.18033912,0.00021887,2]
[378804740,1755025839088,-500.0,0.00021917,2]
[378804741,1755025839098,-200.0,0.00021917,15]
[378804742,1755025839107,-200.0,0.00021917,15]
[378804743,1755025839116,-200.0,0.00021917,15]
[378804744,1755025839125,-200.0,0.00021917,15]
[378804745,1755025839134,-320.0,0.00021917,15]
[378804746,1755025839143,-162.65333618,0.00021918,2]
[378804747,1755025839152,-162.65333619,0.00021918,2]
[378804748,1755025839162,-200.0,0.00021918,2]
[378804749,1755025839171,-168.0,0.00021946,2]
[378804750,1755025839181,-151.0,0.00021948,3]
[378804751,1755025839190,-2000.0,0.00022,2]
[378804752,1755025839200,-422.92,0.00022,2]
[378804753,1755025839211,-1100.0,0.00022004,2]
[378804754,1755025839220,-317.42164629,0.00022021,2]
[378804755,1755025839229,-1000.0,0.00022021,2]
[378804756,1755025839238,-500.0,0.00022021,2]
[378804757,1755025839248,-1000.0,0.00022021,2]
[378804758,1755025839258,-1000.0,0.00022021,2]
[378804759,1755025839267,-1000.0,0.00022021,2]
[378804760,1755025839285,-1000.0,0.00022021,2]
[378804761,1755025839297,-1000.0,0.00022021,2]
[378804762,1755025839306,-1000.0,0.00022021,2]
[378804764,1755025839315,-260.0,0.00022059,2]
[378804765,1755025839325,-168.0,0.0002211,2]
[378804766,1755025839335,-168.0,0.00022227,2]
[378804767,1755025839344,-200.0,0.0002224,4]
[378804768,1755025839353,-151.0,0.00022243,2]
[378804769,1755025839362,-151.0,0.00022243,2]
[378804771,1755025839372,-151.0,0.00022243,2]
[378804773,1755025839382,-151.0,0.00022243,2]
[378804774,1755025839391,-151.0,0.00022243,2]
[378804775,1755025839401,-151.0,0.00022243,3]
[378804776,1755025839411,-704.0,0.00022243,2]
[378804777,1755025839421,-1126.0,0.00022243,2]
[378804778,1755025839430,-218.11712398,0.00022243,2]
[378804780,1755025839440,-39517.25465776,0.000223,7]
[378804781,1755025839902,-461.76100612,0.00019571,2]
[378804782,1755025839912,-417.879,0.00019644,2]
[378804783,1755025839922,-4840.45049388,0.000223,7]
[378804828,1755025845951,-1651.30726247,0.000223,7]
[378804829,1755025845967,-9297.65204338,0.000223,7]
[378804830,1755025845976,-11205.3616013,0.000223,7]
[378804831,1755025846004,-561.65,0.000223,7]
[378804832,1755025846058,-257.18451542,0.000223,7]
[378804833,1755025846069,-5158.16388328,0.000223,7]
[378804834,1755025846079,-528.03329096,0.000223,7]
[378804835,1755025846088,-160.0,0.000223,7]
[378804836,1755025846098,-417.15472785,0.000223,7]
[378804837,1755025846109,-190.752234,0.000223,2]
[378804838,1755025846121,-215.52532928,0.000223,7]
[378804839,1755025846130,-834.18033912,0.0002238,2]
[378804840,1755025846139,-168.0,0.00022407,2]
[378804841,1755025846148,-2000.0,0.00022419,2]
[378804842,1755025846158,-1010.83198822,0.000225,2]
[378804843,1755025846167,-377.24452326,0.000225,7]
[378804845,1755025846180,-1898.1888978,0.000225,7]
[378804847,1755025846191,-5523.36657894,0.000225,7]
[378804848,1755025846201,-198.0,0.00022517,2]
[378804849,1755025846212,-151.0,0.00022517,2]
[378804850,1755025846222,-198.0,0.00022517,2]
[378804851,1755025846231,-151.0,0.00022517,2]
[378804852,1755025846241,-704.0,0.00022517,2]
[378804853,1755025846250,-1126.0,0.00022517,2]
[378804854,1755025846259,-500.0,0.00022531,2]
[378804855,1755025846269,-160.0,0.0002255,4]
[378804856,1755025846279,-176.6236026,0.0002255,5]
[378804857,1755025846289,-449.63201855,0.00022568,2]
[378804858,1755025846298,-1500.0,0.00022568,2]
[378804859,1755025846308,-1500.0,0.00022568,2]
[378804860,1755025846317,-1500.0,0.00022568,2]
[378804861,1755025846328,-1500.0,0.00022568,2]
[378804862,1755025846337,-1500.0,0.00022568,2]
[378804863,1755025846347,-400.0,0.00022603,2]
[378804864,1755025846356,-360.0,0.00022607,2]
[378804865,1755025846367,-585.80650925,0.00022626,2]
[378804866,1755025846416,568.91,0.00029095,60]
[378804873,1755025850346,460.0,0.00029095,60]
[378804874,1755025864301,460.0,0.00029095,60]
[378804875,1755025963001,352.75290385,0.00029095,60]
[378804876,1755026035884,150.44,0.00030136,120]
[378804877,1755026238446,460.0,0.0002907,60]
[378804878,1755026291311,520.84,0.00029075,60]
[378804879,1755026299132,460.0,0.00029075,60]
[378804880,1755026308247,460.0,0.00029075,60]
[378804881,1755026331861,460.0,0.00029075,60]
[378804882,1755026333891,460.0,0.00029075,60]
[378804883,1755026335865,460.0,0.00029075,60]
[378804884,1755026337823,460.0,0.00029075,60]
[378804885,1755026342367,460.0,0.00029075,60]
[378804886,1755026345295,460.0,0.00029075,60]
[378804887,1755026347619,460.0,0.00029075,60]
[378804888,1755026358411,460.0,0.00029075,60]
[378804889,1755026373302,486.35325679,0.00029075,60]
[378804890,1755026376938,460.0,0.00029075,60]
[378804891,1755026390784,460.0,0.00029075,60]
[378804892,1755026401172,460.0,0.00029075,60]
[378804895,1755026444669,460.0,0.00029075,60]
[378804896,1755026450308,460.0,0.00029075,60]
[378804897,1755026463068,460.0,0.00029075,60]
[378804898,1755026469327,468.35319982,0.00029075,60]
[378804899,1755026472858,157.888015,0.00013699,2]
[378804901,1755026504568,460.0,0.00029075,60]
[378804902,1755026517134,540.23411895,0.00029075,60]
[378804903,1755026518088,460.0,0.00029075,60]
[378804904,1755026521430,588.82415391,0.00029075,60]
[378804905,1755026546882,460.0,0.00029075,60]
[378804906,1755026571457,460.0,0.00029075,60]
[378804907,1755026583513,460.0,0.00029079,60]
[378804908,1755026588356,460.0,0.00029079,60]
[378804909,1755026605915,384.55,0.00029079,60]
[378804910,1755026607339,460.0,0.00029079,60]
[378804911,1755026608241,460.0,0.00029079,60]
[378804912,1755026608354,460.0,0.00029079,60]
[378804913,1755026610504,460.0,0.00029079,60]
[378804914,1755026617118,157.35318436,0.00029079,60]
[378804915,1755026618791,460.0,0.00029079,60]
[378804916,1755026621078,460.0,0.00029079,60]
[378804917,1755026622168,460.0,0.00029079,60]
[378804918,1755026624601,460.0,0.00029079,60]
[378804919,1755026626466,460.0,0.00029079,60]
[378804920,1755026627341,460.0,0.00029079,60]
[378804921,1755026640196,460.0,0.00029079,60]
[378804922,1755026652712,509.29671607,0.00029079,60]
[378804923,1755026663712,460.0,0.00029079,60]
[378804924,1755026665031,266.25269696,0.00029079,60]
[378804925,1755026672879,460.0,0.00029079,60]
[378804926,1755026675260,460.0,0.00029079,60]
[378804928,1755026699144,411.67828801,0.00029079,60]
[378804929,1755026712609,460.0,0.00029079,60]
[378804930,1755026713444,461.62926594,0.00029079,60]
[378804931,1755026722575,460.0,0.00029079,60]
[378804932,1755026755619,460.0,0.00029079,60]
[378804933,1755026761218,460.0,0.00029079,60]
[378804935,1755026765240,460.0,0.00029079,60]
[378804936,1755026765473,460.0,0.00029079,60]
[378804942,1755026770810,460.0,0.00029079,60]
[378804943,1755026771419,1000.0,0.00029079,60]
[378804944,1755026771659,460.0,0.00029079,60]
[378804945,1755026771911,403.88,0.00029079,60]
[378804946,1755026773533,606.05,0.00029079,60]
[378804947,1755026773647,460.0,0.00029079,60]
[378804948,1755026774070,460.0,0.00029079,60]
[378804949,1755026774503,460.0,0.00029079,60]
[378804950,1755026774582,460.0,0.00029079,60]
[378804951,1755026774844,460.0,0.00029079,60]
[378804952,1755026775093,460.0,0.00029079,60]
[378804953,1755026775689,288.09,0.00029079,60]
[378804954,1755026781230,460.0,0.00029079,60]
[378804955,1755026782552,460.0,0.00029079,60]
[378804956,1755026783949,460.0,0.00029079,60]
[378804957,1755026784000,460.0,0.00029079,60]
[378804958,1755026786362,460.0,0.00029079,60]
[378804959,1755026786590,460.0,0.00029079,60]
[378804960,1755026786886,233.75,0.00029079,60]
[378804961,1755026790877,460.0,0.00029079,60]
[378804962,1755026791128,460.0,0.00029079,60]
[378804963,1755026791445,460.0,0.00029079,60]
[378804964,1755026791705,460.0,0.00029079,60]
[378804965,1755026791971,460.0,0.00029079,60]
[378804966,1755026792228,460.0,0.00029079,60]
[378804967,1755026792504,460.0,0.00029079,60]
[378804968,1755026792783,460.0,0.00029079,60]
[378804969,1755026793049,460.0,0.00029079,60]
[378804970,1755026793298,460.0,0.00029079,60]
[378804971,1755026793544,358.4,0.00029079,60]
[378804972,1755026794933,460.0,0.00029079,60]
[378804973,1755026796163,460.0,0.00029079,60]
[378804974,1755026796218,460.0,0.00029079,60]
[378804975,1755026797196,460.0,0.00029079,60]
[378804976,1755026797442,434.85309759,0.00029079,60]
[378804977,1755026799362,460.0,0.00029079,60]
[378804978,1755026799417,460.0,0.00029079,60]
[378804979,1755026799465,503.4,0.00029079,60]
[378804980,1755026799691,460.0,0.00029079,60]
[378804981,1755026799740,460.0,0.00029079,60]
[378804982,1755026799796,460.0,0.00029079,60]
[378804983,1755026799865,513.52,0.00029079,60]
[378804984,1755026799912,460.0,0.00029079,60]
[378804985,1755026800028,186.65,0.00029079,60]
[378804986,1755026800155,460.0,0.00029079,60]
[378804987,1755026800359,460.0,0.00029079,60]
[378804988,1755026800406,460.0,0.00029079,60]
[378804989,1755026800675,460.0,0.00029079,60]
[378804990,1755026800963,460.0,0.00029079,60]
[378804991,1755026801230,460.0,0.00029079,60]
[378804992,1755026801487,460.0,0.00029079,60]
[378804993,1755026801733,249.23,0.00029079,60]
[378804994,1755026801781,460.0,0.00029079,60]
[378804995,1755026802136,460.0,0.00029079,60]
[378804996,1755026803425,460.0,0.00029079,60]
[378804997,1755026803906,460.0,0.00029079,60]
[378804998,1755026804151,460.0,0.00029079,60]
[378804999,1755026804397,460.0,0.00029079,60]
[378805000,1755026804627,460.0,0.00029079,60]
[378805001,1755026804858,460.0,0.00029079,60]
[378805002,1755026805125,460.0,0.00029079,60]
[378805003,1755026805426,460.0,0.00029079,60]
[378805004,1755026805644,513.18,0.00029079,60]
[378805005,1755026805865,460.0,0.00029079,60]
[378805006,1755026806527,460.0,0.00029079,60]
[378805007,1755026806576,460.0,0.00029079,60]
[378805009,1755026806665,460.0,0.00029079,60]
[378805010,1755026807276,460.0,0.00029079,60]
[378805011,1755026811511,460.0,0.00029079,60]
[378805012,1755026811754,556.38,0.00029079,60]
[378805013,1755026811905,460.0,0.00029079,60]
[378805014,1755026814028,460.0,0.00029079,60]
[378805015,1755026815054,460.0,0.00029079,60]
[378805016,1755026815300,460.0,0.00029079,60]
[378805017,1755026815537,460.0,0.00029079,60]
[378805018,1755026815775,460.0,0.00029079,60]
[378805019,1755026816017,460.0,0.00029079,60]
[378805020,1755026816276,460.0,0.00029079,60]
[378805021,1755026816536,388.71,0.00029079,60]
[378805022,1755026816593,460.0,0.00029079,60]
[378805023,1755026816958,460.0,0.00029079,60]
[378805024,1755026817251,460.0,0.00029079,60]
[378805025,1755026817516,460.0,0.00029079,60]
[378805026,1755026817764,460.0,0.00029079,60]
[378805027,1755026818229,460.0,0.00029079,60]
[378805028,1755026820495,460.0,0.00029079,60]
[378805029,1755026822291,460.0,0.00029079,60]
[378805030,1755026822546,264.01,0.00029079,60]
[378805031,1755026826457,460.0,0.00029079,60]
[378805032,1755026827260,460.0,0.00029079,60]
[378805033,1755026827417,460.92701654,0.00029079,60]
[378805034,1755026827567,460.0,0.00029079,60]
[378805035,1755026827830,460.0,0.00029079,60]
[378805036,1755026828093,460.0,0.00029079,60]
[378805037,1755026828487,460.0,0.00029079,60]
[378805038,1755026828583,460.0,0.00029079,60]
[378805039,1755026828839,460.0,0.00029079,60]
[378805040,1755026828998,460.0,0.00029079,60]
[378805041,1755026829079,460.0,0.00029079,60]
[378805042,1755026829327,460.0,0.00029079,60]
[378805043,1755026829583,460.0,0.00029079,60]
[378805044,1755026829826,460.0,0.00029079,60]
[378805045,1755026830097,460.0,0.00029079,60]
[378805046,1755026830376,460.0,0.00029079,60]
[378805047,1755026830644,460.0,0.00029079,60]
[378805048,1755026830712,460.0,0.00029079,60]
[378805049,1755026830874,460.0,0.00029079,60]
[378805050,1755026830971,431.36,0.00029079,60]
[378805051,1755026831033,460.0,0.00029079,60]
[378805052,1755026831261,460.0,0.00029079,60]
[378805053,1755026831308,460.0,0.00029079,60]
[378805054,1755026831560,460.0,0.00029079,60]
[378805055,1755026831798,458.3,0.00029079,60]
[378805056,1755026832585,460.0,0.00029079,60]
[378805057,1755026833263,460.0,0.00029079,60]
[378805058,1755026833695,460.0,0.00029079,60]
[378805059,1755026835310,460.0,0.00029079,60]
[378805060,1755026835492,460.0,0.00029079,60]
[378805061,1755026835783,460.0,0.00029079,60]
[378805062,1755026836038,460.0,0.00029079,60]
[378805063,1755026836302,518.13,0.00029079,60]
[378805064,1755026837535,460.0,0.00029079,60]
[378805065,1755026838402,460.0,0.00029079,60]
[378805066,1755026838644,460.0,0.00029079,60]
[378805067,1755026838883,460.0,0.00029079,60]
[378805068,1755026839853,471.51,0.00029079,60]
[378805069,1755026841152,460.0,0.00029079,60]
[378805070,1755026841198,460.0,0.00029079,60]
[378805071,1755026841540,460.0,0.00029079,60]
[378805072,1755026841788,460.0,0.00029079,60]
[378805073,1755026842024,590.86,0.00029079,60]
[378805074,1755026842666,460.0,0.00029079,60]
[378805075,1755026842944,460.0,0.00029079,60]
[378805076,1755026843201,460.0,0.00029079,60]
[378805077,1755026843354,460.0,0.00029079,60]
[378805078,1755026843466,460.0,0.00029079,60]
[378805079,1755026844040,460.0,0.00029079,60]
[378805080,1755026844133,460.0,0.00029079,60]
[378805081,1755026844278,460.0,0.00029079,60]
[378805082,1755026844376,460.0,0.00029079,60]
[378805083,1755026844547,460.0,0.00029079,60]
[378805084,1755026844614,460.0,0.00029079,60]
[378805085,1755026844806,460.0,0.00029079,60]
[378805086,1755026844853,460.0,0.00029079,60]
[378805087,1755026845069,460.0,0.00029079,60]
[378805088,1755026845119,460.0,0.00029079,60]
[378805089,1755026845336,460.0,0.00029079,60]
[378805090,1755026845389,460.0,0.00029079,60]
[378805091,1755026845593,460.0,0.00029079,60]
[378805092,1755026845644,460.0,0.00029079,60]
[378805093,1755026845700,460.0,0.00029079,60]
[378805094,1755026845843,460.0,0.00029079,60]
[378805095,1755026845910,460.0,0.00029079,60]
[378805096,1755026845962,247.8,0.00029079,60]
[378805097,1755026846070,172.04,0.00029079,60]
[378805098,1755026846143,460.0,0.00029079,60]
[378805099,1755026846389,460.0,0.00029079,60]
[378805100,1755026846676,460.0,0.00029079,60]
[378805101,1755026846783,460.0,0.00029079,60]
[378805102,1755026846957,460.0,0.00029079,60]
[378805103,1755026847268,460.0,0.00029079,60]
[378805104,1755026847440,352.58,0.00029079,60]
[378805105,1755026847620,460.0,0.00029079,60]
[378805106,1755026847850,460.0,0.00029079,60]
[378805107,1755026848110,580.15,0.00029079,60]
[378805108,1755026848649,460.0,0.00029079,60]
[378805109,1755026848905,466.77251127,0.00029079,60]
[378805110,1755026849628,178.01816841,0.00029079,60]
[378805111,1755026849693,460.0,0.00029079,60]
[378805112,1755026851272,460.0,0.00029079,60]
[378805113,1755026851438,460.0,0.00029079,60]
[378805114,1755026851710,460.0,0.00029079,60]
[378805115,1755026851757,290.10464858,0.00029079,60]
[378805116,1755026852283,460.0,0.00029079,60]
[378805117,1755026854297,460.0,0.00029079,60]
[378805118,1755026854344,460.0,0.00029079,60]
[378805119,1755026854566,460.0,0.00029079,60]
[378805120,1755026854839,460.0,0.00029079,60]
[378805121,1755026855078,460.0,0.00029079,60]
[378805122,1755026855328,460.0,0.00029079,60]
[378805123,1755026855576,460.0,0.00029079,60]
[378805124,1755026855853,460.0,0.00029079,60]
[378805125,1755026855939,460.0,0.00029079,60]
[378805126,1755026856186,460.0,0.00029079,60]
[378805127,1755026856237,460.0,0.00029079,60]
[378805128,1755026856288,391.18,0.00029079,60]
[378805129,1755026856355,460.0,0.00029079,60]
[378805130,1755026856629,460.0,0.00029079,60]
[378805131,1755026856881,460.0,0.00029079,60]
[378805132,1755026857149,460.0,0.00029079,60]
[378805133,1755026857387,460.0,0.00029079,60]
[378805134,1755026857633,460.0,0.00029079,60]
[378805135,1755026857867,460.0,0.00029079,60]
[378805136,1755026858116,460.0,0.00029079,60]
[378805137,1755026858353,460.0,0.00029079,60]
[378805138,1755026858402,460.0,0.00029079,60]
[378805139,1755026858573,290.33,0.00029079,60]
[378805140,1755026858636,460.0,0.00029079,60]
[378805141,1755026859182,460.0,0.00029079,60]
[378805142,1755026859423,460.0,0.00029079,60]
[378805143,1755026859654,460.0,0.00029079,60]
[378805144,1755026862566,460.0,0.00029079,60]
[378805145,1755026862828,460.0,0.00029079,60]
[378805146,1755026862873,460.0,0.00029079,60]
[378805147,1755026863090,523.81,0.00029079,60]
[378805148,1755026865007,460.0,0.00029079,60]
[378805149,1755026865246,460.0,0.00029079,60]
[378805150,1755026865278,183.079199,0.00018962,61]
[378805151,1755026865518,183.079199,0.00018962,120]
[378805152,1755026865600,460.0,0.00029079,60]
[378805153,1755026865729,460.0,0.00029079,60]
[378805154,1755026865788,321.5025811,0.00029079,60]
[378805155,1755026865885,206.06,0.00029079,60]
[378805156,1755026866876,460.0,0.00029079,60]
[378805157,1755026866923,460.0,0.00029079,60]
[378805158,1755026867150,460.0,0.00029079,60]
[378805159,1755026867474,460.0,0.00029079,60]
[378805160,1755026867716,460.0,0.00029079,60]
[378805161,1755026867952,460.0,0.00029079,60]
[378805162,1755026868195,460.0,0.00029079,60]
[378805163,1755026868438,460.0,0.00029079,60]
[378805164,1755026868709,460.0,0.00029079,60]
[378805165,1755026868838,460.0,0.00029079,60]
[378805166,1755026868971,460.0,0.00029079,60]
[378805167,1755026869243,488.27,0.00029079,60]
[378805168,1755026869901,460.0,0.00029079,60]
[378805169,1755026870621,460.0,0.00029079,60]
[378805170,1755026870775,460.0,0.00029079,60]
[378805171,1755026870884,239.32,0.00029079,60]
[378805172,1755026871105,460.0,0.00029079,60]
[378805173,1755026871547,460.0,0.00029079,60]
[378805174,1755026871794,460.0,0.00029079,60]
[378805175,1755026874048,460.0,0.00029079,60]
[378805176,1755026874749,460.0,0.00029079,60]
[378805177,1755026875987,460.0,0.00029079,60]
[378805178,1755026876252,460.0,0.00029079,60]
[378805179,1755026876437,460.0,0.00029079,60]
[378805180,1755026876839,571.89,0.00029079,60]
[378805181,1755026880485,460.0,0.00029079,60]
[378805182,1755026880530,460.0,0.00029079,60]
[378805183,1755026880824,334.23,0.00029079,60]
[378805184,1755026882071,460.0,0.00029079,60]
[378805185,1755026882339,460.0,0.00029079,60]
[378805186,1755026882386,460.0,0.00029079,60]
[378805187,1755026882914,460.0,0.00029079,60]
[378805188,1755026883053,460.0,0.00029079,60]
[378805189,1755026884925,460.0,0.00029079,60]
[378805190,1755026884974,460.0,0.00029079,60]
[378805191,1755026885088,460.0,0.00029079,60]
[378805192,1755026885186,460.0,0.00029079,60]
[378805193,1755026886347,460.0,0.00029079,60]
[378805194,1755026886608,460.0,0.00029079,60]
[378805195,1755026886851,460.0,0.00029079,60]
[378805196,1755026887076,248.13144482,0.00029079,60]
[378805197,1755026887125,460.0,0.00029079,60]
[378805198,1755026887171,460.0,0.00029079,60]
[378805199,1755026887369,460.0,0.00029079,60]
[378805200,1755026887447,460.0,0.00029079,60]
[378805201,1755026887716,460.0,0.00029079,60]
[378805202,1755026887953,433.47,0.00029079,60]
[378805203,1755026893354,460.0,0.00029079,60]
[378805204,1755026898080,460.0,0.00029079,60]
[378805205,1755026898339,339.99,0.00029079,60]
[378805206,1755026899126,460.0,0.00029079,60]
[378805207,1755026902956,460.0,0.00029079,60]
[378805208,1755026908198,460.0,0.00029079,60]
[378805209,1755026909861,506.48346052,0.00029079,60]
[378805210,1755026911870,460.0,0.00029079,60]
[378805211,1755026912084,294.71,0.00029079,60]
[378805212,1755026912189,460.0,0.00029079,60]
[378805213,1755026912457,460.0,0.00029079,60]
[378805214,1755026912749,233.31,0.00029079,60]
[378805215,1755026913571,460.0,0.00029079,60]
[378805216,1755026913990,460.0,0.00029079,60]
[378805217,1755026914129,460.0,0.00029079,60]
[378805218,1755026914391,520.28,0.00029079,60]
[378805219,1755026915414,460.0,0.00029079,60]
[378805220,1755026915653,217.11,0.00029079,60]
[378805221,1755026916489,460.0,0.00029079,60]
[378805222,1755026916535,460.0,0.00029079,60]
[378805223,1755026916580,460.0,0.00029079,60]
[378805224,1755026916754,248.40118672,0.00029079,60]
[378805225,1755026916834,194.47,0.00029079,60]
[378805226,1755026918741,460.0,0.00029079,60]